[Event "January 9 Early 2024"]
[Site "https://www.chess.com"]
[Date "2024.01.11"]
[Round "9"]
[White "Cristobal, Manuel"]
[Black "Tulchynskyi, Feliks"]
[Result "1-0"]
[Board "161"]
[TimeControl "180+1"]
[WhiteFideId "112879"]
[BlackFideId "34127895"]
[WhiteElo "2708"]
[BlackElo "2565"]
[WhiteTeam "ARG"]
[BlackTeam "UKR"]
[WhiteClock "0:00:53"]
[BlackClock "0:00:02"]

1. d4 {[%clk 0:02:58]}  e6 {[%clk 0:02:55]} 2. Nf3 {[%clk 0:02:58]}  b6 {[%clk 0:02:52]} 3. e3 {[%clk 0:02:58]}  Bb7 {[%clk 0:02:53]} 4. b3 {[%clk 0:02:56]}  Nf6 {[%clk 0:02:51]} 5. Bb2 {[%clk 0:02:56]}  Be7 {[%clk 0:02:52]} 6. Bd3 {[%clk 0:02:51]}  O-O {[%clk 0:02:53]} 7. O-O {[%clk 0:02:51]}  Be4 {[%clk 0:02:51]} 8. Bxe4 {[%clk 0:02:48]}  Nxe4 {[%clk 0:02:52]} 9. c4 {[%clk 0:02:47]}  d5 {[%clk 0:02:49]} 10. Nbd2 {[%clk 0:02:44]}  f5 {[%clk 0:02:47]} 11. Ne5 {[%clk 0:02:42]}  c6 {[%clk 0:02:43]} 12. Nxe4 {[%clk 0:02:39]}  fxe4 {[%clk 0:02:43]} 13. f3 {[%clk 0:02:37]}  exf3 {[%clk 0:02:41]} 14. Rxf3 {[%clk 0:02:37]}  Bf6 {[%clk 0:02:36]} 15. Ng4 {[%clk 0:02:35]}  Nd7 {[%clk 0:02:35]} 16. Qd3 {[%clk 0:02:22]}  Qe7 {[%clk 0:02:17]} 17. Raf1 {[%clk 0:02:19]}  Bh4 {[%clk 0:02:13]} 18. e4 {[%clk 0:02:17]}  Rxf3 {[%clk 0:02:11]} 19. Rxf3 {[%clk 0:02:15]}  Rf8 {[%clk 0:02:09]} 20. g3 {[%clk 0:02:04]}  Bg5 {[%clk 0:02:07]} 21. Kg2 {[%clk 0:02:02]}  h5 {[%clk 0:01:57]} 22. Nf2 {[%clk 0:01:59]}  Rxf3 {[%clk 0:01:52]} 23. Qxf3 {[%clk 0:01:59]}  Qf7 {[%clk 0:01:53]} 24. Qxf7+ {[%clk 0:01:56]}  Kxf7 {[%clk 0:01:53]} 25. Kf3 {[%clk 0:01:57]}  g6 {[%clk 0:01:50]} 26. Nd3 {[%clk 0:01:57]}  Bd2 {[%clk 0:01:47]} 27. h3 {[%clk 0:01:54]}  a5 {[%clk 0:01:36]} 28. a4 {[%clk 0:01:43]}  Bg5 {[%clk 0:01:29]} 29. Bc3 {[%clk 0:01:42]}  Bh6 {[%clk 0:01:14]} 30. exd5 {[%clk 0:01:39]}  exd5 {[%clk 0:01:12]} 31. c5 {[%clk 0:01:40]}  bxc5 {[%clk 0:01:07]} 32. dxc5 {[%clk 0:01:40]}  Bf8 {[%clk 0:01:05]} 33. Bxa5 {[%clk 0:01:39]}  Bxc5 {[%clk 0:01:03]} 34. Nxc5 {[%clk 0:01:32]}  Nxc5 {[%clk 0:01:02]} 35. Bb6 {[%clk 0:01:33]}  Na6 {[%clk 0:00:41]} 36. Kf4 {[%clk 0:01:30]}  Kf6 {[%clk 0:00:41]} 37. Bd4+ {[%clk 0:01:29]}  Ke6 {[%clk 0:00:39]} 38. Kg5 {[%clk 0:01:29]}  c5 {[%clk 0:00:39]} 39. Bb2 {[%clk 0:01:27]}  Kf7 {[%clk 0:00:37]} 40. Be5 {[%clk 0:01:22]}  Ke6 {[%clk 0:00:29]} 41. Bf4 {[%clk 0:01:22]}  Kf7 {[%clk 0:00:28]} 42. a5 {[%clk 0:01:12]}  d4 {[%clk 0:00:25]} 43. g4 {[%clk 0:01:12]}  hxg4 {[%clk 0:00:25]} 44. Kxg4 {[%clk 0:01:12]}  Ke6 {[%clk 0:00:20]} 45. Kg5 {[%clk 0:01:12]}  Kf7 {[%clk 0:00:21]} 46. Bd6 {[%clk 0:01:12]}  Ke6 {[%clk 0:00:20]} 47. Bg3 {[%clk 0:01:04]}  d3 {[%clk 0:00:16]} 48. Be1 {[%clk 0:01:04]}  Ke5 {[%clk 0:00:12]} 49. Kxg6 {[%clk 0:01:03]}  Ke4 {[%clk 0:00:11]} 50. h4 {[%clk 0:01:04]}  Kf3 {[%clk 0:00:11]} 51. h5 {[%clk 0:01:02]}  Ke2 {[%clk 0:00:12]} 52. Bc3 {[%clk 0:01:03]}  Kd1 {[%clk 0:00:10]} 53. h6 {[%clk 0:01:03]}  Kc2 {[%clk 0:00:11]} 54. Be1 {[%clk 0:01:01]}  Kd1 {[%clk 0:00:11]} 55. Bh4 {[%clk 0:01:02]}  Kc2 {[%clk 0:00:07]} 56. Bg5 {[%clk 0:01:02]}  Kxb3 {[%clk 0:00:07]} 57. h7 {[%clk 0:01:02]}  c4 {[%clk 0:00:07]} 58. h8=Q {[%clk 0:01:02]}  c3 {[%clk 0:00:06]} 59. Qg8+ {[%clk 0:00:59]}  Kc2 {[%clk 0:00:05]} 60. Qa2+ {[%clk 0:00:58]}  Kd1 {[%clk 0:00:04]} 61. Qb1+ {[%clk 0:00:57]}  Ke2 {[%clk 0:00:03]} 62. Qb5 {[%clk 0:00:55]}  Nc7 {[%clk 0:00:03]} 63. Qe5+ {[%clk 0:00:54]}  Kd1 {[%clk 0:00:02]} 64. Qxc3 {[%clk 0:00:53]}  Ne6 {[%clk 0:00:02]} 65. Qd2# {[%clk 0:00:53]} 1-0

[Event "January 9 Early 2024"]
[Site "https://www.chess.com"]
[Date "2024.01.11"]
[Round "9"]
[White "Gonzalez Vega, Alejandro"]
[Black "Khegay, Yuliya"]
[Result "0-1"]
[Board "163"]
[TimeControl "180+1"]
[WhiteFideId "3510042"]
[BlackFideId "14205394"]
[WhiteElo "2254"]
[BlackElo "2227"]
[WhiteTeam "CUB"]
[BlackTeam "UZB"]
[WhiteClock "0:00:07"]
[BlackClock "0:00:05"]

1. e4 {[%clk 0:03:00]}  c6 {[%clk 0:03:00]} 2. d4 {[%clk 0:02:59]}  d5 {[%clk 0:02:59]} 3. exd5 {[%clk 0:02:59]}  cxd5 {[%clk 0:02:57]} 4. Bd3 {[%clk 0:02:57]}  Nc6 {[%clk 0:02:57]} 5. c3 {[%clk 0:02:57]}  Nf6 {[%clk 0:02:57]} 6. Bf4 {[%clk 0:02:55]}  Bg4 {[%clk 0:02:57]} 7. Qb3 {[%clk 0:02:53]}  Qd7 {[%clk 0:02:54]} 8. Nd2 {[%clk 0:02:52]}  e6 {[%clk 0:02:54]} 9. Ngf3 {[%clk 0:02:51]}  Bxf3 {[%clk 0:02:53]} 10. Nxf3 {[%clk 0:02:51]}  Bd6 {[%clk 0:02:54]} 11. Bxd6 {[%clk 0:02:11]}  Qxd6 {[%clk 0:02:55]} 12. O-O {[%clk 0:02:11]}  O-O {[%clk 0:02:54]} 13. Rfe1 {[%clk 0:02:11]}  Nd7 {[%clk 0:02:41]} 14. Qc2 {[%clk 0:02:00]}  g6 {[%clk 0:02:29]} 15. Rad1 {[%clk 0:01:43]}  Rac8 {[%clk 0:02:26]} 16. Qd2 {[%clk 0:01:40]}  Kg7 {[%clk 0:01:42]} 17. Bc2 {[%clk 0:01:35]}  b5 {[%clk 0:01:36]} 18. a3 {[%clk 0:01:27]}  a5 {[%clk 0:01:35]} 19. h4 {[%clk 0:01:12]}  Nf6 {[%clk 0:01:08]} 20. Ne5 {[%clk 0:00:52]}  b4 {[%clk 0:00:58]} 21. axb4 {[%clk 0:00:51]}  axb4 {[%clk 0:00:58]} 22. Re3 {[%clk 0:00:46]}  bxc3 {[%clk 0:00:55]} 23. bxc3 {[%clk 0:00:46]}  Ne7 {[%clk 0:00:32]} 24. Rh3 {[%clk 0:00:43]}  h5 {[%clk 0:00:27]} 25. Qg5 {[%clk 0:00:39]}  Ne4 {[%clk 0:00:19]} 26. Bxe4 {[%clk 0:00:38]}  dxe4 {[%clk 0:00:20]} 27. Qe3 {[%clk 0:00:36]}  Nd5 {[%clk 0:00:18]} 28. Qxe4 {[%clk 0:00:34]}  Nxc3 {[%clk 0:00:18]} 29. Rxc3 {[%clk 0:00:33]}  Rxc3 {[%clk 0:00:19]} 30. Qf4 {[%clk 0:00:31]}  f6 {[%clk 0:00:15]} 31. Qd2 {[%clk 0:00:24]}  Rcc8 {[%clk 0:00:12]} 32. Nf3 {[%clk 0:00:24]}  Rcd8 {[%clk 0:00:12]} 33. Rc1 {[%clk 0:00:20]}  e5 {[%clk 0:00:13]} 34. Qb2 {[%clk 0:00:19]}  exd4 {[%clk 0:00:12]} 35. Qb7+ {[%clk 0:00:18]}  Rf7 {[%clk 0:00:13]} 36. Qb3 {[%clk 0:00:17]}  d3 {[%clk 0:00:13]} 37. Rd1 {[%clk 0:00:17]}  Qd5 {[%clk 0:00:11]} 38. Qc3 {[%clk 0:00:17]}  Rfd7 {[%clk 0:00:08]} 39. Rd2 {[%clk 0:00:17]}  Qe4 {[%clk 0:00:04]} 40. Ng5 {[%clk 0:00:10]}  Qe1+ {[%clk 0:00:04]} 41. Kh2 {[%clk 0:00:10]}  Qe5+ {[%clk 0:00:03]} 42. Kg1 {[%clk 0:00:09]}  Qxc3 {[%clk 0:00:03]} 43. Ne6+ {[%clk 0:00:07]}  Kf7 {[%clk 0:00:04]} 44. Nxd8+ {[%clk 0:00:07]}  Rxd8 {[%clk 0:00:05]} 0-1

[Event "January 9 Early 2024"]
[Site "https://www.chess.com"]
[Date "2024.01.11"]
[Round "9"]
[White "Salem, A.R. Saleh"]
[Black "Nakamura, Hikaru"]
[Result "0-1"]
[Board "165"]
[TimeControl "180+1"]
[WhiteFideId "9301348"]
[BlackFideId "2016192"]
[WhiteElo "2999"]
[BlackElo "3255"]
[WhiteTeam "UAE"]
[BlackTeam "USA"]
[WhiteClock "0:00:07"]
[BlackClock "0:00:04"]

1. d4 {[%clk 0:02:59]}  Nf6 {[%clk 0:02:51]} 2. c4 {[%clk 0:02:59]}  b6 {[%clk 0:02:51]} 3. Nc3 {[%clk 0:02:59]}  Bb7 {[%clk 0:02:51]} 4. Nf3 {[%clk 0:02:59]}  e6 {[%clk 0:02:51]} 5. a3 {[%clk 0:02:59]}  d5 {[%clk 0:02:51]} 6. cxd5 {[%clk 0:02:59]}  Nxd5 {[%clk 0:02:52]} 7. e3 {[%clk 0:02:54]}  Nxc3 {[%clk 0:02:51]} 8. bxc3 {[%clk 0:02:54]}  Nd7 {[%clk 0:02:52]} 9. Bd3 {[%clk 0:02:52]}  c5 {[%clk 0:02:52]} 10. O-O {[%clk 0:02:47]}  Be7 {[%clk 0:02:51]} 11. e4 {[%clk 0:02:47]}  Qc7 {[%clk 0:02:49]} 12. Qe2 {[%clk 0:02:44]}  O-O {[%clk 0:02:47]} 13. Bb2 {[%clk 0:02:43]}  Rfd8 {[%clk 0:02:47]} 14. Rad1 {[%clk 0:02:43]}  Rac8 {[%clk 0:02:38]} 15. Rfe1 {[%clk 0:02:43]}  Bf8 {[%clk 0:02:37]} 16. e5 {[%clk 0:02:36]}  Be7 {[%clk 0:02:26]} 17. h4 {[%clk 0:02:27]}  Nf8 {[%clk 0:02:22]} 18. h5 {[%clk 0:02:26]}  c4 {[%clk 0:02:15]} 19. Bb1 {[%clk 0:02:22]}  b5 {[%clk 0:02:16]} 20. Nd2 {[%clk 0:02:11]}  a5 {[%clk 0:02:15]} 21. Qg4 {[%clk 0:02:09]}  b4 {[%clk 0:02:14]} 22. axb4 {[%clk 0:02:07]}  axb4 {[%clk 0:02:14]} 23. Re3 {[%clk 0:02:08]}  f5 {[%clk 0:01:54]} 24. exf6 {[%clk 0:02:06]}  Bxf6 {[%clk 0:01:55]} 25. Ne4 {[%clk 0:01:46]}  Bxe4 {[%clk 0:01:52]} 26. Bxe4 {[%clk 0:01:46]}  bxc3 {[%clk 0:01:48]} 27. Bxc3 {[%clk 0:01:45]}  Rb8 {[%clk 0:01:45]} 28. Bc2 {[%clk 0:01:44]}  Rb5 {[%clk 0:01:44]} 29. Qe2 {[%clk 0:01:17]}  Rbd5 {[%clk 0:01:26]} 30. Re4 {[%clk 0:00:50]}  h6 {[%clk 0:01:22]} 31. Rg4 {[%clk 0:00:43]}  Qd7 {[%clk 0:00:47]} 32. Bg6 {[%clk 0:00:36]}  Nxg6 {[%clk 0:00:37]} 33. hxg6 {[%clk 0:00:34]}  e5 {[%clk 0:00:37]} 34. Re4 {[%clk 0:00:21]}  exd4 {[%clk 0:00:20]} 35. Qxc4 {[%clk 0:00:21]}  Rc8 {[%clk 0:00:15]} 36. Qe2 {[%clk 0:00:17]}  Kh8 {[%clk 0:00:10]} 37. Bd2 {[%clk 0:00:13]}  d3 {[%clk 0:00:10]} 38. Qf3 {[%clk 0:00:12]}  Rf8 {[%clk 0:00:09]} 39. Rde1 {[%clk 0:00:11]}  Rf5 {[%clk 0:00:07]} 40. Qh3 {[%clk 0:00:11]}  Bd4 {[%clk 0:00:06]} 41. Rf4 {[%clk 0:00:09]}  Rxf4 {[%clk 0:00:03]} 42. Qxd7 {[%clk 0:00:06]}  Bxf2+ {[%clk 0:00:03]} 43. Kf1 {[%clk 0:00:07]}  Be3# {[%clk 0:00:04]} 0-1

[Event "January 9 Early 2024"]
[Site "https://www.chess.com"]
[Date "2024.01.11"]
[Round "9"]
[White "Tharushi, T H D Niklesha"]
[Black "Novak, Ratko"]
[Result "1-0"]
[Board "170"]
[TimeControl "180+1"]
[WhiteFideId "9918264"]
[BlackFideId "14511827"]
[WhiteElo "2267"]
[BlackElo "2404"]
[WhiteTeam "SRI"]
[BlackTeam "CRO"]
[WhiteClock "0:00:33"]
[BlackClock "0:00:09"]

1. d4 {[%clk 0:02:59]}  d5 {[%clk 0:02:54]} 2. Nf3 {[%clk 0:02:56]}  c5 {[%clk 0:02:53]} 3. c3 {[%clk 0:02:53]}  cxd4 {[%clk 0:02:53]} 4. cxd4 {[%clk 0:02:52]}  Nc6 {[%clk 0:02:54]} 5. Nc3 {[%clk 0:02:50]}  f6 {[%clk 0:02:54]} 6. e3 {[%clk 0:02:47]}  Bg4 {[%clk 0:02:52]} 7. h3 {[%clk 0:02:44]}  Bh5 {[%clk 0:02:49]} 8. a3 {[%clk 0:02:42]}  e6 {[%clk 0:02:49]} 9. Be2 {[%clk 0:02:42]}  Bd6 {[%clk 0:02:49]} 10. b4 {[%clk 0:02:36]}  a6 {[%clk 0:02:47]} 11. Bb2 {[%clk 0:02:37]}  Rc8 {[%clk 0:02:47]} 12. Na4 {[%clk 0:02:34]}  Nge7 {[%clk 0:02:43]} 13. O-O {[%clk 0:02:31]}  Bb8 {[%clk 0:02:42]} 14. Nc5 {[%clk 0:02:20]}  Qd6 {[%clk 0:02:28]} 15. g3 {[%clk 0:02:17]}  Nd8 {[%clk 0:02:21]} 16. Kg2 {[%clk 0:02:12]}  O-O {[%clk 0:02:16]} 17. Ne1 {[%clk 0:02:12]}  Bf7 {[%clk 0:02:11]} 18. Ned3 {[%clk 0:02:11]}  e5 {[%clk 0:02:02]} 19. dxe5 {[%clk 0:02:09]}  fxe5 {[%clk 0:02:01]} 20. Bxe5 {[%clk 0:02:08]}  Qg6 {[%clk 0:01:55]} 21. Bxb8 {[%clk 0:01:58]}  Rxb8 {[%clk 0:01:55]} 22. Nd7 {[%clk 0:01:58]}  Ne6 {[%clk 0:01:48]} 23. Nxb8 {[%clk 0:01:57]}  Rxb8 {[%clk 0:01:47]} 24. Ne5 {[%clk 0:01:57]}  Qe4+ {[%clk 0:01:44]} 25. Nf3 {[%clk 0:01:56]}  Bg6 {[%clk 0:01:31]} 26. Kh2 {[%clk 0:01:45]}  Rf8 {[%clk 0:01:27]} 27. Nh4 {[%clk 0:01:40]}  Ng5 {[%clk 0:01:22]} 28. Nxg6 {[%clk 0:01:34]}  Nxg6 {[%clk 0:01:21]} 29. Qd3 {[%clk 0:01:28]}  Nf3+ {[%clk 0:01:19]} 30. Kh1 {[%clk 0:01:17]}  Nd2+ {[%clk 0:01:11]} 31. Qxe4 {[%clk 0:01:16]}  dxe4 {[%clk 0:01:11]} 32. Rad1 {[%clk 0:01:14]}  Nxf1 {[%clk 0:01:11]} 33. Bxf1 {[%clk 0:01:14]}  Rxf2 {[%clk 0:01:08]} 34. Bc4+ {[%clk 0:01:14]}  Kf8 {[%clk 0:01:08]} 35. Rf1 {[%clk 0:00:57]}  Rxf1+ {[%clk 0:01:07]} 36. Bxf1 {[%clk 0:00:58]}  Ne5 {[%clk 0:01:05]} 37. Bg2 {[%clk 0:00:58]}  Nc4 {[%clk 0:01:03]} 38. Bxe4 {[%clk 0:00:56]}  b6 {[%clk 0:01:03]} 39. Bd3 {[%clk 0:00:55]}  Nxa3 {[%clk 0:00:58]} 40. Bxa6 {[%clk 0:00:55]}  Nc2 {[%clk 0:00:59]} 41. Bd3 {[%clk 0:00:54]}  Nxb4 {[%clk 0:00:56]} 42. Bxh7 {[%clk 0:00:54]}  Ke7 {[%clk 0:00:55]} 43. Kg2 {[%clk 0:00:53]}  Ke6 {[%clk 0:00:54]} 44. Kf3 {[%clk 0:00:53]}  Ke5 {[%clk 0:00:55]} 45. Bg8 {[%clk 0:00:52]}  Nc6 {[%clk 0:00:54]} 46. g4 {[%clk 0:00:47]}  b5 {[%clk 0:00:54]} 47. h4 {[%clk 0:00:47]}  b4 {[%clk 0:00:55]} 48. h5 {[%clk 0:00:45]}  Na5 {[%clk 0:00:55]} 49. g5 {[%clk 0:00:45]}  Kf5 {[%clk 0:00:50]} 50. h6 {[%clk 0:00:43]}  gxh6 {[%clk 0:00:51]} 51. gxh6 {[%clk 0:00:44]}  Kg6 {[%clk 0:00:51]} 52. h7 {[%clk 0:00:44]}  Kg7 {[%clk 0:00:52]} 53. Ke4 {[%clk 0:00:36]}  b3 {[%clk 0:00:51]} 54. Kd3 {[%clk 0:00:36]}  Nc6 {[%clk 0:00:51]} 55. Kc3 {[%clk 0:00:34]}  Na5 {[%clk 0:00:29]} 56. Bxb3 {[%clk 0:00:33]}  Kxh7 {[%clk 0:00:27]} 57. Bd5 {[%clk 0:00:33]}  Kg6 {[%clk 0:00:09]} 58. Kb4 {[%clk 0:00:32]}  Kf6 {[%clk 0:00:08]} 59. Kxa5 {[%clk 0:00:33]}  Ke5 {[%clk 0:00:09]} 60. e4 {[%clk 0:00:33]} 1-0

[Event "January 9 Early 2024"]
[Site "https://www.chess.com"]
[Date "2024.01.11"]
[Round "9"]
[White "Kraus, Tomas"]
[Black "Yelisieiev, Yevhenii"]
[Result "0-1"]
[Board "172"]
[TimeControl "180+1"]
[WhiteFideId "331708"]
[BlackFideId "14139642"]
[WhiteElo "2345"]
[BlackElo "2504"]
[WhiteTeam "CZE"]
[BlackTeam "GER"]
[WhiteClock "0:00:05"]
[BlackClock "0:00:19"]

1. e4 {[%clk 0:03:00]}  d6 {[%clk 0:02:56]} 2. d4 {[%clk 0:03:00]}  Nf6 {[%clk 0:02:56]} 3. Nc3 {[%clk 0:03:01]}  e5 {[%clk 0:02:57]} 4. Nf3 {[%clk 0:03:00]}  Nbd7 {[%clk 0:02:56]} 5. Bc4 {[%clk 0:02:55]}  Be7 {[%clk 0:02:56]} 6. O-O {[%clk 0:02:54]}  O-O {[%clk 0:02:57]} 7. Bg5 {[%clk 0:02:49]}  c6 {[%clk 0:02:55]} 8. Qd2 {[%clk 0:02:42]}  b5 {[%clk 0:02:50]} 9. Bb3 {[%clk 0:02:37]}  b4 {[%clk 0:02:48]} 10. Ne2 {[%clk 0:02:08]}  Nxe4 {[%clk 0:02:46]} 11. Bxe7 {[%clk 0:02:09]}  Nxd2 {[%clk 0:02:43]} 12. Bxd8 {[%clk 0:02:08]}  Nxf3+ {[%clk 0:02:41]} 13. gxf3 {[%clk 0:02:08]}  Rxd8 {[%clk 0:02:41]} 14. f4 {[%clk 0:01:51]}  Ba6 {[%clk 0:02:01]} 15. Rfe1 {[%clk 0:01:25]}  Bxe2 {[%clk 0:02:00]} 16. Rxe2 {[%clk 0:01:26]}  exd4 {[%clk 0:01:51]} 17. Rd1 {[%clk 0:00:47]}  Nc5 {[%clk 0:01:50]} 18. Rxd4 {[%clk 0:00:41]}  Nxb3 {[%clk 0:01:48]} 19. axb3 {[%clk 0:00:39]}  c5 {[%clk 0:01:49]} 20. Rd5 {[%clk 0:00:33]}  Rd7 {[%clk 0:01:38]} 21. Red2 {[%clk 0:00:29]}  Rad8 {[%clk 0:01:39]} 22. c3 {[%clk 0:00:29]}  a5 {[%clk 0:01:36]} 23. f3 {[%clk 0:00:18]}  Kf8 {[%clk 0:01:34]} 24. Kf2 {[%clk 0:00:19]}  Ke7 {[%clk 0:01:34]} 25. Re2+ {[%clk 0:00:19]}  Kf6 {[%clk 0:01:33]} 26. Red2 {[%clk 0:00:20]}  g6 {[%clk 0:01:28]} 27. Kg3 {[%clk 0:00:20]}  h5 {[%clk 0:01:28]} 28. h4 {[%clk 0:00:20]}  Ke6 {[%clk 0:01:24]} 29. f5+ {[%clk 0:00:13]}  gxf5 {[%clk 0:01:24]} 30. Kf4 {[%clk 0:00:13]}  bxc3 {[%clk 0:01:20]} 31. bxc3 {[%clk 0:00:13]}  a4 {[%clk 0:01:11]} 32. bxa4 {[%clk 0:00:13]}  Ra8 {[%clk 0:01:10]} 33. Rxf5 {[%clk 0:00:12]}  Rxa4+ {[%clk 0:01:10]} 34. Kg5 {[%clk 0:00:11]}  d5 {[%clk 0:00:54]} 35. Re2+ {[%clk 0:00:06]}  Kd6 {[%clk 0:00:54]} 36. Ree5 {[%clk 0:00:04]}  Kc6 {[%clk 0:00:53]} 37. Rf6+ {[%clk 0:00:03]}  Kc7 {[%clk 0:00:52]} 38. Ref5 {[%clk 0:00:03]}  Rc4 {[%clk 0:00:43]} 39. Rxf7 {[%clk 0:00:03]}  Rxf7 {[%clk 0:00:41]} 40. Rxf7+ {[%clk 0:00:04]}  Kd6 {[%clk 0:00:40]} 41. Kxh5 {[%clk 0:00:04]}  Rxc3 {[%clk 0:00:40]} 42. Kg6 {[%clk 0:00:04]}  Rc1 {[%clk 0:00:34]} 43. h5 {[%clk 0:00:04]}  Rg1+ {[%clk 0:00:34]} 44. Kh6 {[%clk 0:00:04]}  c4 {[%clk 0:00:32]} 45. Rg7 {[%clk 0:00:04]}  Rf1 {[%clk 0:00:29]} 46. Rg6+ {[%clk 0:00:02]}  Kd7 {[%clk 0:00:22]} 47. Kg7 {[%clk 0:00:02]}  c3 {[%clk 0:00:20]} 48. h6 {[%clk 0:00:03]}  c2 {[%clk 0:00:20]} 49. h7 {[%clk 0:00:03]}  c1=Q {[%clk 0:00:19]} 50. h8=Q {[%clk 0:00:04]}  Qc3+ {[%clk 0:00:19]} 51. Rf6 {[%clk 0:00:04]}  Rxf3 {[%clk 0:00:16]} 52. Qf8 {[%clk 0:00:01]}  Qxf6+ {[%clk 0:00:16]} 53. Qxf6 {[%clk 0:00:02]}  Rxf6 {[%clk 0:00:17]} 54. Kxf6 {[%clk 0:00:02]}  d4 {[%clk 0:00:17]} 55. Ke5 {[%clk 0:00:03]}  d3 {[%clk 0:00:18]} 56. Kd4 {[%clk 0:00:04]}  d2 {[%clk 0:00:18]} 57. Kc3 {[%clk 0:00:05]}  d1=Q {[%clk 0:00:19]} 0-1

[Event "January 9 Early 2024"]
[Site "https://www.chess.com"]
[Date "2024.01.11"]
[Round "9"]
[White "Fier, Alexandr"]
[Black "Kuzubov, Yuriy"]
[Result "0-1"]
[Board "175"]
[TimeControl "180+1"]
[WhiteFideId "2107139"]
[BlackFideId "14112906"]
[WhiteElo "2736"]
[BlackElo "2873"]
[WhiteTeam "BRA"]
[BlackTeam "UKR"]
[WhiteClock "0:00:32"]
[BlackClock "0:00:16"]

1. c4 {[%clk 0:02:52]}  e5 {[%clk 0:02:58]} 2. Nc3 {[%clk 0:02:50]}  Bb4 {[%clk 0:02:59]} 3. Nd5 {[%clk 0:02:49]}  a5 {[%clk 0:02:59]} 4. Nf3 {[%clk 0:02:46]}  d6 {[%clk 0:02:57]} 5. e3 {[%clk 0:02:44]}  Nf6 {[%clk 0:02:54]} 6. a3 {[%clk 0:02:45]}  Bc5 {[%clk 0:02:54]} 7. d4 {[%clk 0:02:43]}  Nxd5 {[%clk 0:02:49]} 8. dxc5 {[%clk 0:02:42]}  Nf6 {[%clk 0:02:44]} 9. cxd6 {[%clk 0:02:42]}  Qxd6 {[%clk 0:02:41]} 10. Qxd6 {[%clk 0:02:33]}  cxd6 {[%clk 0:02:42]} 11. Be2 {[%clk 0:02:32]}  Be6 {[%clk 0:02:41]} 12. O-O {[%clk 0:02:28]}  Nbd7 {[%clk 0:02:34]} 13. Rd1 {[%clk 0:02:28]}  Ke7 {[%clk 0:02:32]} 14. a4 {[%clk 0:02:28]}  Nc5 {[%clk 0:02:27]} 15. Nd2 {[%clk 0:02:26]}  Bf5 {[%clk 0:02:25]} 16. b3 {[%clk 0:02:06]}  Bc2 {[%clk 0:02:24]} 17. Re1 {[%clk 0:02:06]}  Bxb3 {[%clk 0:02:15]} 18. Ba3 {[%clk 0:02:03]}  Bc2 {[%clk 0:02:15]} 19. Rec1 {[%clk 0:01:57]}  Bf5 {[%clk 0:02:13]} 20. f3 {[%clk 0:01:57]}  Rhc8 {[%clk 0:02:07]} 21. e4 {[%clk 0:01:56]}  Bd7 {[%clk 0:02:07]} 22. Rab1 {[%clk 0:01:53]}  Bxa4 {[%clk 0:02:03]} 23. Nf1 {[%clk 0:01:53]}  Bc6 {[%clk 0:02:00]} 24. Ne3 {[%clk 0:01:54]}  g6 {[%clk 0:01:59]} 25. Rd1 {[%clk 0:01:52]}  Rab8 {[%clk 0:01:51]} 26. Bc1 {[%clk 0:01:44]}  Nfd7 {[%clk 0:01:44]} 27. Ba3 {[%clk 0:01:37]}  Nf8 {[%clk 0:01:40]} 28. Nd5+ {[%clk 0:01:32]}  Bxd5 {[%clk 0:01:40]} 29. cxd5 {[%clk 0:01:32]}  Nfd7 {[%clk 0:01:36]} 30. Rb5 {[%clk 0:01:31]}  b6 {[%clk 0:01:33]} 31. Rc1 {[%clk 0:01:21]}  Rc7 {[%clk 0:01:25]} 32. Bf1 {[%clk 0:01:20]}  Rbc8 {[%clk 0:01:24]} 33. g3 {[%clk 0:01:15]}  Nb7 {[%clk 0:01:16]} 34. Ra1 {[%clk 0:01:11]}  Rc3 {[%clk 0:00:59]} 35. Bh3 {[%clk 0:01:10]}  Rxf3 {[%clk 0:00:57]} 36. Bxd7 {[%clk 0:01:09]}  Kxd7 {[%clk 0:00:57]} 37. Rxb6 {[%clk 0:01:10]}  Rc7 {[%clk 0:00:51]} 38. Rab1 {[%clk 0:00:56]}  Rxa3 {[%clk 0:00:44]} 39. Rxb7 {[%clk 0:00:55]}  Rc3 {[%clk 0:00:44]} 40. Rb8 {[%clk 0:00:54]}  Rc1+ {[%clk 0:00:43]} 41. Rxc1 {[%clk 0:00:54]}  Rxc1+ {[%clk 0:00:43]} 42. Kg2 {[%clk 0:00:55]}  h5 {[%clk 0:00:26]} 43. Ra8 {[%clk 0:00:55]}  Rc4 {[%clk 0:00:25]} 44. Ra7+ {[%clk 0:00:55]}  Ke8 {[%clk 0:00:25]} 45. Kf3 {[%clk 0:00:56]}  a4 {[%clk 0:00:24]} 46. h4 {[%clk 0:00:52]}  f5 {[%clk 0:00:23]} 47. exf5 {[%clk 0:00:49]}  gxf5 {[%clk 0:00:23]} 48. Ke3 {[%clk 0:00:49]}  f4+ {[%clk 0:00:22]} 49. gxf4 {[%clk 0:00:45]}  Rxf4 {[%clk 0:00:23]} 50. Ra6 {[%clk 0:00:43]}  Ke7 {[%clk 0:00:21]} 51. Ra7+ {[%clk 0:00:44]}  Kd8 {[%clk 0:00:20]} 52. Ra6 {[%clk 0:00:45]}  Kc7 {[%clk 0:00:20]} 53. Ra7+ {[%clk 0:00:31]}  Kb6 {[%clk 0:00:20]} 54. Ra8 {[%clk 0:00:31]}  Kc5 {[%clk 0:00:17]} 55. Ra5+ {[%clk 0:00:31]}  Kc4 {[%clk 0:00:17]} 56. Rxa4+ {[%clk 0:00:31]}  Kxd5 {[%clk 0:00:17]} 57. Rxf4 {[%clk 0:00:28]}  exf4+ {[%clk 0:00:17]} 58. Kxf4 {[%clk 0:00:29]}  Ke6 {[%clk 0:00:17]} 59. Ke4 {[%clk 0:00:28]}  d5+ {[%clk 0:00:16]} 60. Kd4 {[%clk 0:00:29]}  Kd6 {[%clk 0:00:17]} 61. Kd3 {[%clk 0:00:29]}  Ke5 {[%clk 0:00:17]} 62. Ke3 {[%clk 0:00:30]}  Kf5 {[%clk 0:00:16]} 63. Kd4 {[%clk 0:00:29]}  Ke6 {[%clk 0:00:17]} 64. Kd3 {[%clk 0:00:29]}  Ke5 {[%clk 0:00:16]} 65. Ke3 {[%clk 0:00:30]}  Kf5 {[%clk 0:00:14]} 66. Kd4 {[%clk 0:00:30]}  Kg4 {[%clk 0:00:15]} 67. Kxd5 {[%clk 0:00:31]}  Kxh4 {[%clk 0:00:15]} 68. Ke4 {[%clk 0:00:32]}  Kg3 {[%clk 0:00:16]} 69. Ke3 {[%clk 0:00:32]}  h4 {[%clk 0:00:16]} 0-1